Cogmind - Beta 16.1 @@@ ROGUE MODE // 2026.02.16 @ 13:17:57 Player: Ladmageddon Result: Destroyed by G-34 Mercenary with Small Laser Performance ------------- Evolutions (1) 500 Regions Visited (3) 600 Robots Destroyed (14) 70 Value Destroyed (416) 416 Prototype IDs (2) 40 Alien Tech Used (0) 0 Bonus (-39) -39 TOTAL SCORE: 1587 Bonus ------- Friendly Fire -39 Cogmind --------- Core Integrity 0/400 Matter 286/300 Energy 100/100 System Corruption 13% Temperature Cool (6) Movement Flying (110) Ox1 Location -9/Materials Parts ------- > --- POWER (1) -------- Heavy Ion Engine > --- PROPULSION (2) --- Improved Flight Unit > --- UTILITY (4) ------ Small Storage Unit Weight Redist. System Hacking Suite > --- WEAPON (2) ------- Improved Datajack > --- INVENTORY (8) ---- Heavy Ion Engine Structural Scanner Improved Datajack Peak State ------------ > --- POWER ------------ Light Nuclear Core > --- PROPULSION ------- Wheel Compact Wheel > --- UTILITY ---------- Small Storage Unit Improved Terrain Scanner Insulated Plating > --- WEAPON ----------- Shock Rifle Assault Rifle > --- INVENTORY -------- Light Nuclear Core Wheel Hacking Suite Shock Rifle Medium Laser Rocket Launcher Improved Datajack Mining Laser [Rating: 17] Favorites ----------- Power Light Nuclear Core Engine Light Ion Engine Power Core Light Nuclear Core Propulsion Wheel Wheel Wheel Flight Unit Improved Flight Unit Utility Small Storage Unit Device Improved Terrain Scanner Storage Small Storage Unit Hackware Hacking Suite Protection Insulated Plating Weapon Assault Rifle Energy Gun Shock Rifle Ballistic Gun Assault Rifle Launcher Rocket Launcher Special Weapon Mining Laser Special Melee Weapon Improved Datajack Build | -11 -10 -10 -9 ------- Run | Yrd Mat Min Mat Slots Evolved 2 | . . . 2 Power . | . . . . Propulsion . | . . . . Utility 2 | . . . 2 Weapon . | . . . . Parts Attached 24 | 7 . . 17 Power 5 | 1 . . 4 Engine 2 | 1 . . 1 Core 3 | . . . 3 Reactor . | . . . . Propulsion 5 | 2 . . 3 Treads . | . . . . Leg . | . . . . Wheel 4 | 2 . . 2 Hover . | . . . . Flight 1 | . . . 1 Utility 7 | 2 . . 5 Device 3 | 1 . . 2 Storage 1 | 1 . . . Processor . | . . . . Hackware 1 | . . . 1 Protection 2 | . . . 2 Artifact . | . . . . Weapon 7 | 2 . . 5 Energy Gun 3 | 1 . . 2 Energy Cannon . | . . . . Ballistic Gun 1 | 1 . . . Ballistic Cannon . | . . . . Launcher 1 | . . . 1 Special Weapon 1 | . . . 1 Impact Weapon . | . . . . Slashing Weapon . | . . . . Piercing Weapon . | . . . . Special Melee Weapon 1 | . . . 1 Unidentified Prototypes 2 | . . . 2 Corrupted Parts 1 | . . . 1 System Corruption 3 | . . . 3 Parts Lost 16 | . . . 16 Power 3 | . . . 3 Propulsion 4 | . . . 4 Utility 4 | . . . 4 Weapon 5 | . . . 5 Highest Loss Streak 12 | . . . 12 To Critical Strikes . | . . . . Average Backups 6 | 2 4 7 6 Power 1 | . 1 1 . Propulsion . | . 1 1 . Utility 1 | . . 1 1 Weapon 2 | 1 2 2 2 Tool/Special . | . . . . Unused Backups 5 | . . . 5 Power 2 | . . . 2 Propulsion . | . . . . Utility 1 | . . . 1 Weapon 1 | . . . 1 Tool/Special 1 | . . . 1 Average Slot Usage (%) 86 | . 100 100 79 Engine 5 | . 14 14 1 Core 6 | . . . 9 Wheel 21 | . 28 28 18 Device 11 | . 14 14 10 Storage 11 | . 14 14 11 Protection 5 | . . . 8 Energy Gun 11 | . 14 14 9 Ballistic Gun 8 | . 14 14 6 Special Weapon 1 | . . . 2 Peak Build Rating 17 | 9 9 10 17 Average Rating 12 | 5 9 9 15 On Entrance 7 | . 9 9 10 Avg Prop Armor Cover (%) . | . . . . Naked Turns . | . . . . Heaviest Build 21 | 13 13 13 21 Greatest Support 26 | 26 26 26 26 Greatest Overweight (x) 1 | 1 . . 1 Average Overweight (x) . | . . . . Largest Inventory Capacity 8 | 8 8 8 8 Average Capacity 7 | 7 8 8 8 Most Carried 8 | 5 4 8 8 Average Carried 6 | 3 4 7 6 Final Capacity 8 | 8 8 8 8 Final Carried 8 | 4 4 8 3 Class Distribution -------------------- 100% | Mutant Dominant Class ---------------- Mutant | -10/Mines Mutant | -9/Materials Resources | -11 -10 -10 -9 ----------- Run | Yrd Mat Min Mat Matter Collected 565 | 260 . 31 274 Remotely . | . . . . Salvage Created 441 | 74 . . 367 Parts 30 | 5 . . 25 Haulers Intercepted . | . . . . Recyclers Shooed 3 | 2 . . 1 Parts Field Recycled . | . . . . Retrieved Matter . | . . . . Parts Self-Destructed . | . . . . Prevented . | . . . . Parts Restored . | . . . . Kills | -11 -10 -10 -9 ------- Run | Yrd Mat Min Mat Combat Hostiles Destroyed 10 | . . . 10 Guns 5 | . . . 5 AOE 5 | . . . 5 Classes Destroyed 6 | 2 . . 4 Worker 1 | . . . 1 Builder 1 | . . . 1 Tunneler 1 | 1 . . . Recycler 1 | 1 . . . Grunt 9 | . . . 9 Sentry 1 | . . . 1 Best Kill Streak 7 | 1 . . 7 Combat Bots Only 5 | . . . 5 Max Kills in Single Turn 2 | 1 . . 2 Gunslinging . | . . . . Exploded 2 | . . . 2 Melee . | . . . . Uniques/NPCs Destroyed . | . . . . Combat | -11 -10 -10 -9 -------- Run | Yrd Mat Min Mat Hostile Shots Fired 135 | . . . 135 Missed 40 | . . . 40 Hits 95 | . . . 95 Projectile 95 | . . . 95 AOE 1 | . . . 1 Critical Strikes 1 | . . . 1 Damage Taken 1566 | . . 36 1530 Core 403 | . . . 403 Absorbed by Shields . | . . . . Ignored by Resistances 4 | . . . 4 Core Remaining (%) 100 | 100 . 100 . Volleys Fired 61 | 7 . . 54 Largest 2 | 2 . . 2 Hottest 150 | 70 . . 150 Shots Fired 99 | 14 . . 85 Gun 86 | 14 . . 72 Cannon . | . . . . Launcher 7 | . . . 7 Special 6 | . . . 6 Kinetic 36 | 7 . . 29 Thermal 13 | 7 . . 6 Explosive 7 | . . . 7 Electromagnetic 43 | . . . 43 Robot Hit Streak 13 | 5 . . 13 Robot Miss Streak 2 | 2 . . 1 Penetration Max . | . . . . Secondary Targets 1 | . . . 1 Max Gunslinging Chain 1 | . . . 1 Shots Hit Robots 33 | 9 . . 24 Core Hits 28 | 3 . . 25 Critical Kills . | . . . . Critical Parts Destroyed . | . . . . Critical Strikes 1 | 1 . . . Burn 1 | 1 . . . Melee Attacks 1 | . . . 1 Impact . | . . . . Slashing . | . . . . Piercing . | . . . . Sneak Attacks . | . . . . Combat Hostiles . | . . . . Follow-up Attacks . | . . . . Damage Inflicted 1110 | 121 . . 989 Guns 447 | 121 . . 326 Cannons . | . . . . Explosions 657 | . . . 657 Melee . | . . . . Ramming 6 | . . . 6 Kinetic 137 | 71 . . 66 Thermal 50 | 50 . . . Explosive 545 | . . . 545 Electromagnetic 372 | . . . 372 Impact . | . . . . Slashing . | . . . . Piercing . | . . . . Highest Corruption 13 | . . . 13 Average Corruption 11 | . . . 11 Corruption Purged . | . . . . Corruption Blocked . | . . . . Effects 10 | . . . 10 Message Errors 3 | . . . 3 Matter Fused 1 | . . . 1 Heat Flow Errors 2 | . . . 2 Energy Discharges 1 | . . . 1 Data Loss (minor) 1 | . . . 1 Alerts 1 | . . . 1 Misdirections 1 | . . . 1 Overload Shots . | . . . . Overflow Damage 4 | . . . 4 Projectiles . | . . . . Explosions 4 | . . . 4 Melee . | . . . . Knockbacks . | . . . . Impact . | . . . . Kinetic . | . . . . Secondary . | . . . . Self-Inflicted Damage 92 | . . . 92 Shots 3 | . . . 3 Rammed 4 | . . . 4 Targets Rammed 4 | . . . 4 Kicked . | . . . . Crushed . | . . . . Highest Temperature 300 | 36 . . 300 Average Temperature 121 | 15 . . 131 Received Heat Transfer 567 | . . . 567 Effects 3 | . . . 3 Interference 3 | . . . 3 Siege Activations . | . . . . Martial Activations . | . . . . Shielding Activations . | . . . . Robots Disrupted . | . . . . Combat Hostiles . | . . . . Robots Corrupted . | . . . . Combat Hostiles . | . . . . Parts Fried . | . . . . Impact Corruptions . | . . . . Robots Melted . | . . . . Combat Hostiles . | . . . . Parts Melted . | . . . . Heat Transferred 222 | 222 . . . Parts Sabotaged . | . . . . Parts Stolen . | . . . . Parts Stripped . | . . . . Power Chain Reactions . | . . . . Alert | -11 -10 -10 -9 ------- Run | Yrd Mat Min Mat Maximum Alert Level . | . . . . Low Security (%) 100 | 100 100 100 100 Level 1 . | . . . . Level 2 . | . . . . Level 3 . | . . . . Level 4 . | . . . . Level 5 . | . . . . High Security . | . . . . Max Security . | . . . . Peak Influence 176 | 5 . . 176 Initial . | . . . . Average 22 | 1 . . 35 Influence Increases 363 | 10 . . 353 Destroy 0b10 Robot/C 200 | . . . 200 Destroy 0b10 Robot/NC 20 | 10 . . 10 Destroy Leader 50 | . . . 50 Successful Hack 5 | . . . 5 Disable Machine 30 | . . . 30 Destroy Structure 28 | . . . 28 Partial Spotted 15 | . . . 15 Lose Combat Pursuer 15 | . . . 15 Influence Decreases 258 | 10 . . 248 Time Decay 127 | 10 . . 117 Lost Part 131 | . . . 131 Squads Dispatched 4 | . . . 4 Investigation 1 | . . . 1 Extermination . | . . . . Reinforcement 3 | . . . 3 Assault . | . . . . Garrison . | . . . . Intercept . | . . . . Searches Triggered . | . . . . Construction Impeded 1 | . . . 1 Haulers Reinforced . | . . . . Active Scanning Responses . | . . . . Cargo Convoy Interrupts . | . . . . Stealth | -11 -10 -10 -9 --------- Run | Yrd Mat Min Mat Distress Signals 1 | . . . 1 Communications Jammed . | . . . . Distress Signals . | . . . . Times Spotted 26 | . . . 26 Peak Tracking Total 15 | . . . 15 Tactical Retreats 1 | . . . 1 Traps | -11 -10 -10 -9 ------- Run | Yrd Mat Min Mat Traps Triggered . | . . . . Indirectly . | . . . . Trap Hack Attempts . | . . . . Triggered . | . . . . Disarmed . | . . . . Reprogrammed . | . . . . Reused . | . . . . Traps Extracted . | . . . . Installed . | . . . . Triggered . | . . . . Machines | -11 -10 -10 -9 ---------- Run | Yrd Mat Min Mat Machines Disabled 2 | . . . 2 Max in Single Turn 1 | . . . 1 Machines Repaired . | . . . . Machines Dismantled . | . . . . Machines Sabotaged . | . . . . Overloaded Fab Kills . | . . . . Hacking | -11 -10 -10 -9 --------- Run | Yrd Mat Min Mat Machines Accessed 2 | . . 1 1 Terminals 1 | . . . 1 Fabricators . | . . . . Repair Stations . | . . . . Recycling Units . | . . . . Scanalyzers . | . . . . Garrison Access . | . . . . Total Hacks 4 | . . 1 3 Successful 4 | . . 1 3 Failed . | . . . . Catastrophic . | . . . . Database Lockouts . | . . . . Manual . | . . . . Terminals 3 | . . . 3 Fabricators . | . . . . Repair Stations . | . . . . Recycling Units . | . . . . Scanalyzers . | . . . . Garrison Access . | . . . . Terminal Hacks 4 | . . 1 3 Record 1 | . . . 1 Open Door 1 | . . 1 . Alert Level 1 | . . . 1 Zone Layout 1 | . . . 1 Fabricator Hacks . | . . . . Repair Station Hacks . | . . . . Recycling Unit Hacks . | . . . . Scanalyzer . | . . . . Garrison Access Hacks . | . . . . Unauthorized Hacks . | . . . . Terminals . | . . . . Fabricators . | . . . . Repair Stations . | . . . . Recycling Units . | . . . . Scanalyzers . | . . . . Garrison Access . | . . . . Data Cores Recovered . | . . . . Used . | . . . . Hacking Detections 1 | . . . 1 Full Trace Events 1 | . . . 1 Feedback Events . | . . . . Feedback Blocked . | . . . . Robot Schematics Acquired . | . . . . Robots Built . | . . . . Authchips . | . . . . Time . | . . . . Total Robot Build Rating . | . . . . Part Schematics Acquired . | . . . . Parts Built . | . . . . Authchips . | . . . . Time . | . . . . Total Part Build Rating . | . . . . Part Studies Acquired . | . . . . Parts Repaired . | . . . . Time . | . . . . Parts Recycled . | . . . . Recycled Matter . | . . . . Retrieved Matter . | . . . . Retrieved Components . | . . . . Parts Scanalyzed . | . . . . Part Schematics Acquired . | . . . . Parts Damaged . | . . . . Bothacking | -11 -10 -10 -9 ------------ Run | Yrd Mat Min Mat Used RIF Installer . | . . . . Robots Hacked 1 | . . . 1 Non-combat . | . . . . Combat 1 | . . . 1 Robot Hacks Applied 1 | . . . 1 parse_system 1 | . . . 1 Relay Couplers Released . | . . . . Fabnet Peak Effective % . | . . . . Robots Rewired . | . . . . Allies Hacked . | . . . . Hacks Repelled . | . . . . Allies | -11 -10 -10 -9 -------- Run | Yrd Mat Min Mat Total Allies . | . . . . Largest Group . | . . . . Highest-Rated Group . | . . . . Highest-Rated Ally . | . . . . Total Orders . | . . . . Ally Attacks . | . . . . Total Damage . | . . . . Kills . | . . . . Allies Corrupted . | . . . . Allies Melted . | . . . . Intel | -11 -10 -10 -9 ------- Run | Yrd Mat Min Mat Active Infowar (turns) 353 | 9 7 192 145 Terrain 353 | 9 7 192 145 Robot Analysis Total . | . . . . Derelict Logs Recovered . | . . . . Drone Launches . | . . . . Drone Recoveries . | . . . . Exploration | -11 -10 -10 -9 ------------- Run | Yrd Mat Min Mat Turns Passed 701 | 63 7 192 439 Spaces Moved 517 | 33 8 209 267 Core 23 | 12 . . 11 Treads . | . . . . Legs . | . . . . Wheels 484 | 21 8 209 246 Hover . | . . . . Flight 10 | . . . 10 Fastest Speed 50 | 50 90 90 50 Average Speed 87 | 76 90 90 87 Slowest Speed 110 | 100 90 90 110 Overloaded Moves . | . . . . Propulsion Burnouts . | . . . . Robots Hopped . | . . . . Potential Cave-ins 2 | . . . 2 Cave-ins Triggered 1 | . . . 1 Exploration Rate (%) 21 | 4 4 57 20 Regions Visited 3 Branch Regions 1 Pre-discovered Areas . | . . . . Known Exits Taken . | . . . . Unknown Exits Taken 3 | 1 1 1 . Scrap Searched 1 | . . 1 . Spaces Dug 6 | . . . 6 Terrain Destroyed 44 | . . . 44 Melee . | . . . . Projectile 6 | . . . 6 AOE 38 | . . . 38 Terrain Rammed . | . . . . Walls Destroyed . | . . . . Machines Disabled . | . . . . Actions | -11 -10 -10 -9 --------- Run | Yrd Mat Min Mat Total 650 | 54 7 212 377 Wait 10 | . . . 10 Move 514 | 32 7 208 267 Hop . | . . . . Pick Up 25 | 8 . 4 13 Fast Attach 6 | 3 . . 3 Attach 20 | 4 . . 16 Detach 1 | . . . 1 Swap 1 | . . . 1 Drop 6 | . . . 6 Fire 61 | 7 . . 54 Melee 1 | . . . 1 Ram 5 | . . . 5 Kick . | . . . . Crush . | . . . . Escape Stasis . | . . . . Rewire . | . . . . Trap . | . . . . Miscellaneous . | . . . . Route ------- -11/Scrapyard -10/Materials -10/Mines (discovered 2 exits: *Mat x2) -9/Materials History --------- Turn | Location | Event 10 | -11/Scrapyard | Discovered new exit (range 15) 64 | -11/Scrapyard | Entered Materials 64 | -10/Materials | Discovered new exit (range 7) 71 | -10/Materials | Entered Mines 78 | -10/Mines | Met a Derelict who couldn't figure out how to use a Trap Extractor 130 | -10/Mines | Discovered new exit (range 4) 193 | -10/Mines | Received a Rocket Launcher from a helpful Derelict 229 | -10/Mines | Discovered new exit (range 12) 263 | -10/Mines | Entered Materials 263 | -9/Materials | Evolved 2 slots: Utility x2 326 | -9/Materials | Build established: Mutant 500 | -9/Materials | Crushed by falling debris 500 | -9/Materials | System corruption reached 10% 531 | -9/Materials | Lost 3 parts (1p1n1u) 669 | -9/Materials | Core integrity fell below 50% 697 | -9/Materials | Core integrity fell below 20% 702 | -9/Materials | Destroyed by G-34 Mercenary with Small Laser Last Messages --------------- Imp. Heat Sink destroyed. W-16 Scout sends out distress signal. O-16 Technician: "IFF HANDSHAKE FAILED. SECURING TERMINAL." ALERT: Hostiles spotted, dispatching reinforcements to Terminal M006. Wheel destroyed. Lgt. Nuclear Core destroyed. Acquired Prototype Engine. System corrupted: Heat flow error (+192). Identified Hvy. Ion Engine. Acquired Hvy. Ion Engine. Acquired Prototype Flight Unit. Identified Imp. Flight Unit. Slammed into G-34 Mercenary. Hvy. Ion Engine broken. Destabilizing: Short circuit. Slammed into G-34 Mercenary. Slammed into Y-45 Defender. G-34 Mercenary destroyed. Map ----- +----------------------------------------------------+ | ?????????????????????????????????????????????????? | | ?????????????????????????????????????????????????? | | ?????????????????????????????????????????????????? | | ?????????????????????????????????????????????????? | | ?????????????????????????????????????????????????? | | ?????????????????????????????????????????????????? | | ?????????????????????????????????????????????????? | | ?????????????????????????????????????????????????? | | ?????????????????????????????????????????????????? | | ?????????????????????????????????????????????????? | | ?????????????????????????????????????????????????? | | ?????????????????????????????????????????????????? | | ?????????????????????????????????????????????????? | | ????????????????##########???????????????????????? | | ????????????? ??# #???????????????????????? | | ????????????? ??# = """ #???????????????????????? | | ????????????? ??# """ #???????????????????????? | | ????????????# #?# """ ##??????????????????????? | | ????????????# #?# #??????????????????????? | | ????????????# #?# ##??????????????????????? | | ????????????# #?# #???????????????????????? | | ????###+###?# #?# "T" #???????????????????????? | | ##### #?# #?# #???????????????????????? | | #?# #?#####;####???????????????????????? | | #?# #???#= Yg #############????????????? | | ? ### #####%[ @ ????????? | | ????# gg= Y ????????? | | ?????# o ##a ????????? | | ?????# ## ##### ####+## ?????????? | | ?????# ####a###????? #????????????????? | | ?????# ##+#? ???????? #????????????????? | | ?????# #???# ?????????#????????????????? | | ?????# #???#=== ??????????????????????????? | | ?????# ######???#=== ??????????????????????????? | | ?????# #????????#=== ??????????????????????????? | | ?????# #????????# ??????????????????????????? | | ?????# #????????# ??????????????????????????? | | ?????# #????????# ??????????????????????????? | | ?????# #????????#####??????????????????????????? | | ?????# #???????????????????????????????????????? | | ?????# #???????????????????????????????????????? | | ?????# #???????????????????????????????????????? | | ?????# #???????????????????????????????????????? | | ?????# #???????????????????????????????????????? | | ?????# ###?????????????????????????????????????? | | ?????# #?????????????????????????????????????? | | ?????# #?????????????????????????????????????? | | ?????# #?????????????????????????????????????? | | ?????# #?????????????????????????????????????? | | ?????# ! #?????????????????????????????????????? | +----------------------------------------------------+ Best States ------------- Heat Dissipation 42 Energy Generation 14 Energy Capacity 280 Matter Stores 300 Matter Capacity 300 Sight Range 16 Terrain Scan Range 16 Terrain Scan Density 10 Additional Mass Support 6 Armor Coverage 150 Resistance: EM 15 Evasion (%) 50 Offensive Hacking 10 Item Schematics ----------------- None Robot Schematics ------------------ None Fabricated ------------ Nothing Repaired ---------- Nothing Studied --------- None Alien Tech Used ----------------- None Achievements -------------- A Problem For Future Me Hydra Resistances Are Futile Challenges ------------ None Game ------ Seed AlphaTrapShielding Manual? 0 Play Time 00:16:46 Cumulative 20.2 hours Start 2026.02.16 @ 13:03:55 End 2026.02.16 @ 13:17:57 Sessions 1 Manual Loads 0 Difficulty Rogue Special Mode None Game No. 51 Rogue 48 Adventurer 3 Explorer 0 Win Type - Total 0 Types 0/0/0/0/0/0/0/0/0/0 Lore% 12 Gallery% 25 Achievement% 14 Wizard Run 0 Options --------- Layout 1 ASCII 0 Keyboard 0 Movement Mouse Keybinds 0 Fullscreen 1 Font 16/SmallcapsGlow Map View 25x20 Zoom Use 96% Tactical HUD 0 Map Filters NONE Filters NONE Steam SD RUN: ec39a5e9-391d-4a02-a54c-52a8fbdeff08